fUSD/lending_fUSD_20260418
["ID","MTS","AMOUNT","RATE_DAILY","PERIOD"]
[420664612,1776448948409,-652.75618696,7.56e-05,2]
[420664613,1776448948419,-52.1667989,7.56e-05,2]
[420664614,1776448948442,-1279.42897447,7.56e-05,2]
[420664615,1776448948453,-52.1667989,7.56e-05,2]
[420664616,1776448999679,270.20796519,7.22e-05,2]
[420664617,1776449041741,200.0,6.974e-05,2]
[420664618,1776449048499,154.0,7.22e-05,3]
[420664619,1776449111594,154.0,7.22e-05,3]
[420664620,1776449112173,154.0,7.22e-05,3]
[420664621,1776449165976,154.0,7.22e-05,3]
[420664622,1776449218563,165.82,5.528e-05,2]
[420664623,1776449218602,165.82,6.22e-05,2]
[420664624,1776449218647,165.82,6.911e-05,2]
[420664625,1776449227421,154.0,7.22e-05,3]
[420664626,1776449304393,10000.01,6.88e-05,2]
[420664627,1776449304414,10000.01,6.88e-05,2]
[420664628,1776449304436,10000.01,6.88e-05,2]
[420664629,1776449304459,10000.01,6.88e-05,2]
[420664630,1776449304482,10000.01,6.88e-05,2]
[420664631,1776449304505,10000.01,6.88e-05,2]
[420664632,1776449304527,10000.01,6.88e-05,2]
[420664633,1776449304550,7218.37,6.88e-05,2]
[420664634,1776449342914,1600.0,6.88e-05,2]
[420664635,1776449345844,153.0,6.88e-05,3]
[420664636,1776449346546,361.0,7.164e-05,7]
[420664637,1776449406318,154.0,7.164e-05,3]
[420664638,1776449406865,153.0,7.164e-05,3]
[420664644,1776449432988,-246.0,7.268e-05,2]
[420664645,1776449432999,-282.21,7.268e-05,2]
[420664646,1776449433009,-1500.0,7.321e-05,2]
[420664647,1776449433020,-250.0,7.321e-05,2]
[420664648,1776449433029,-500.0,7.433e-05,2]
[420664649,1776449433039,-500.0,7.433e-05,2]
[420664650,1776449433049,-500.0,7.433e-05,2]
[420664651,1776449433058,-500.0,7.433e-05,2]
[420664652,1776449433069,-362.00417451,7.433e-05,2]
[420664653,1776449433282,-137.99582549,7.433e-05,2]
[420664654,1776449433293,-300.0,7.459e-05,2]
[420664655,1776449433303,-300.0,7.459e-05,2]
[420664656,1776449433314,-1200.0,7.459e-05,2]
[420664657,1776449433324,-300.0,7.459e-05,2]
[420664658,1776449433333,-346.79723087,7.459e-05,2]
[420664659,1776449433343,-500.0,7.459e-05,2]
[420664660,1776449433352,-432.45088032,7.459e-05,2]
[420664661,1776449433362,-500.0,7.459e-05,2]
[420664662,1776449433372,-2695.49118204,7.46e-05,2]
[420664663,1776449433385,-1112926.35191796,7.46e-05,2]
[420664664,1776449433394,-300.0,7.542e-05,2]
[420664665,1776449433404,-480.0,7.542e-05,2]
[420664666,1776449433414,-500.0,7.543e-05,2]
[420664667,1776449433426,-282.37472983,7.543e-05,2]
[420664668,1776449433917,-500.0,7.543e-05,2]
[420664669,1776449433927,-150.0,7.558e-05,2]
[420664670,1776449433937,-1000.0,7.559e-05,2]
[420664671,1776449433946,-753.00729326,7.559e-05,2]
[420664672,1776449433956,-500.0,7.56e-05,2]
[420664673,1776449433966,-1001.68188255,7.561e-05,2]
[420664674,1776449433975,-500.0,7.563e-05,2]
[420664675,1776449433985,-500.0,7.563e-05,2]
[420664676,1776449433994,-500.0,7.563e-05,2]
[420664677,1776449434004,-500.0,7.563e-05,2]
[420664678,1776449434013,-500.0,7.563e-05,2]
[420664679,1776449434023,-500.0,7.563e-05,2]
[420664680,1776449434033,-500.0,7.563e-05,2]
[420664681,1776449434042,-500.0,7.563e-05,2]
[420664682,1776449434051,-500.0,7.563e-05,2]
[420664683,1776449434061,-216.463464,7.563e-05,2]
[420664684,1776449434070,-1047.52861084,7.563e-05,2]
[420664685,1776449434080,-500.0,7.563e-05,2]
[420664686,1776449434090,-361.0,7.565e-05,7]
[420664687,1776449434100,-165.82,7.602e-05,2]
[420664688,1776449434111,-578.20924308,7.712e-05,2]
[420664689,1776449434121,-246.97304237,7.712e-05,2]
[420664690,1776449434131,-1280.88388878,7.712e-05,2]
[420664691,1776449434141,-500.0,7.712e-05,2]
[420664692,1776449434150,-3231.45019585,7.712e-05,2]
[420664693,1776449434163,-5334.30536326,7.712e-05,2]
[420664694,1776449434172,-209.40437685,7.712e-05,2]
[420664695,1776449434181,-500.0,7.712e-05,2]
[420664696,1776449434190,-500.0,7.712e-05,2]
[420664697,1776449434200,-200.0,7.712e-05,2]
[420664698,1776449434209,-500.0,7.712e-05,2]
[420664699,1776449434218,-500.0,7.712e-05,2]
[420664700,1776449434228,-500.0,7.712e-05,2]
[420664701,1776449434237,-500.0,7.712e-05,2]
[420664702,1776449434246,-500.0,7.712e-05,2]
[420664703,1776449434256,-646.65982734,7.712e-05,2]
[420664704,1776449434265,-500.0,7.712e-05,2]
[420664705,1776449434275,-24.44589705,7.712e-05,2]
[420664706,1776449434287,-475.55410295,7.712e-05,2]
[420664707,1776449434296,-500.0,7.712e-05,2]
[420664708,1776449434306,-500.0,7.712e-05,2]
[420664709,1776449434315,-500.0,7.712e-05,2]
[420664710,1776449434324,-500.0,7.712e-05,2]
[420664711,1776449434334,-500.0,7.712e-05,2]
[420664712,1776449434345,-743.50770149,7.712e-05,2]
[420664713,1776449434354,-151.0,7.712e-05,2]
[420664714,1776449434365,-174.61919141,7.712e-05,2]
[420664715,1776449434376,-187.78006525,7.712e-05,2]
[420664716,1776449434385,-1000.0,7.712e-05,2]
[420664717,1776449434394,-153.73506925,7.712e-05,2]
[420664718,1776449434404,-151.0,7.712e-05,2]
[420664719,1776449434414,-156.587,7.712e-05,2]
[420664720,1776449434423,-196.04254267,7.712e-05,2]
[420664721,1776449434433,-693.3919763,7.712e-05,2]
[420664722,1776449434444,-151.0,7.712e-05,2]
[420664723,1776449434453,-211.40802048,7.712e-05,2]
[420664724,1776449434462,-219.23011724,7.712e-05,2]
[420664725,1776449434472,-227.34163157,7.712e-05,2]
[420664726,1776449434482,-235.75327194,7.712e-05,2]
[420664727,1776449434491,-244.476143,7.712e-05,2]
[420664728,1776449434501,-253.52176029,7.712e-05,2]
[420664729,1776449434510,-262.90206542,7.712e-05,2]
[420664730,1776449434520,-272.62944185,7.712e-05,2]
[420664731,1776449434530,-282.71673119,7.712e-05,2]
[420664732,1776449434539,-293.17725025,7.712e-05,2]
[420664733,1776449434549,-304.02480851,7.712e-05,2]
[420664734,1776449434558,-323.26840334,7.712e-05,2]
[420664735,1776449434567,-1600.0,7.74e-05,2]
[420664736,1776449434577,-1852.42,7.757e-05,2]
[420664737,1776449434586,-421.50275044,7.767e-05,2]
[420664738,1776449434603,-78.49724956,7.767e-05,2]
[420664739,1776449434615,-8882.6885148,7.767e-05,2]
[420664740,1776449434624,-151.0,7.767e-05,2]
[420664741,1776449434635,-500.0,7.822e-05,2]
[420664742,1776449434645,-8944.6589617,7.822e-05,2]
[420664743,1776449434654,-3224.22,7.858e-05,2]
[420664744,1776449434664,-500.0,7.858e-05,2]
[420664745,1776449434673,-500.0,7.877e-05,2]
[420664746,1776449434683,-394.41554348,7.888e-05,2]
[420664747,1776449434692,-500.0,7.932e-05,2]
[420664748,1776449434701,-150.0,7.978e-05,2]
[420664749,1776449434711,-502.84265253,7.981e-05,2]
[420664750,1776449434721,-1000.0,7.981e-05,2]
[420664751,1776449434731,-500.72366847,7.981e-05,2]
[420664752,1776449434740,-977.68136442,7.981e-05,2]
[420664753,1776449434750,-500.0,7.981e-05,2]
[420664754,1776449434759,-500.0,7.987e-05,2]
[420664755,1776449434769,-1533.657722,8e-05,2]
[420664756,1776449434778,-1300.0,8e-05,2]
[420664757,1776449434787,-500.0,8.042e-05,2]
[420664758,1776449434797,-250.0,8.053e-05,2]
[420664759,1776449434806,-250.0,8.053e-05,2]
[420664760,1776449434816,-6579.28098046,8.072e-05,2]
[420664761,1776449434826,-500.0,8.097e-05,2]
[420664762,1776449434836,-500.0,8.152e-05,2]
[420664763,1776449434846,-153.0,8.153e-05,3]
[420664764,1776449434856,-2625.237584,8.178e-05,2]
[420664765,1776449434866,-420.0,8.205e-05,2]
[420664766,1776449434875,-1680.0,8.205e-05,2]
[420664767,1776449434884,-420.0,8.205e-05,2]
[420664768,1776449434894,-208.88713324,8.219e-05,2]
[420664769,1776449434904,-500.0,8.219e-05,2]
[420664770,1776449434914,-500.0,8.219e-05,2]
[420664771,1776449434923,-614.04434257,8.219e-05,2]
[420664772,1776449434933,-150.0,8.219e-05,2]
[420664773,1776449434942,-500.0,8.219e-05,2]
[420664774,1776449434951,-500.0,8.219e-05,2]
[420664775,1776449434961,-319.81384217,8.219e-05,2]
[420664776,1776449434970,-500.0,8.219e-05,2]
[420664777,1776449434980,-500.0,8.219e-05,2]
[420664778,1776449434990,-3015.59,8.219e-05,2]
[420664779,1776449435001,-150.0,8.22e-05,2]
[420664780,1776449435010,-500.0,8.22e-05,2]
[420664781,1776449435021,-1328.27659266,8.26e-05,2]
[420664782,1776449435030,-771.01748645,8.26e-05,2]
[420664783,1776449435040,-181.08010149,8.26e-05,2]
[420664784,1776449435050,-194.72792766,8.26e-05,2]
[420664785,1776449435059,-165.82,8.293e-05,2]
[420664786,1776449435070,-1000.0,8.329e-05,2]
[420664787,1776449435079,-1000.0,8.33e-05,2]
[420664788,1776449435088,-164.12,8.457e-05,2]
[420664789,1776449435097,-151.0,8.47e-05,2]
[420664790,1776449435109,-500.0,8.494e-05,2]
[420664791,1776449435120,-150.0,8.52e-05,2]
[420664792,1776449435130,-1500.0,8.528e-05,2]
[420664793,1776449435140,-1600.0,8.6e-05,2]
[420664794,1776449435149,-996.12043845,8.687e-05,2]
[420664795,1776449435158,-1000.00086744,8.747e-05,2]
[420664796,1776449435167,-181.87813958,8.768e-05,2]
[420664797,1776449435189,-318.12186042,8.768e-05,2]
[420664798,1776449435198,-160.0,8.8e-05,2]
[420664799,1776449435208,-193.05955075,8.808e-05,2]
[420664800,1776449435221,-1184.36327584,8.808e-05,2]
[420664801,1776449435230,-799.54513345,8.808e-05,2]
[420664802,1776449435241,-187.78006525,8.808e-05,2]
[420664803,1776449435251,-201.93286099,8.808e-05,2]
[420664804,1776449435260,-150.0,8.82e-05,2]
[420664805,1776449435270,-101.61624862,8.872e-05,2]
[420664806,1776449435330,-48.38375138,8.872e-05,2]
[420664807,1776449435341,-313.0,8.9e-05,2]
[420664808,1776449435355,-150.0,8.902e-05,2]
[420664809,1776449435366,-150.0,8.986e-05,2]
[420664810,1776449435377,-150.0,8.996e-05,2]
[420664811,1776449435396,-18.00293511,9e-05,3]
[420664815,1776449438391,-500.0,7.459e-05,2]
[420664816,1776449438403,-152.15411963,7.459e-05,2]
[420664817,1776449438413,-234.3039503,7.459e-05,2]
[420664818,1776449438423,-500.0,8.219e-05,2]
[420664819,1776449438432,-500.0,8.219e-05,2]
[420664820,1776449438443,-500.0,8.219e-05,2]
[420664821,1776449438453,-2681.99706489,9e-05,3]
[420664822,1776449438463,-200.0,9.003e-05,2]
[420664823,1776449438472,-200.0,9.003e-05,2]
[420664824,1776449438482,-200.0,9.003e-05,2]
[420664825,1776449438493,-200.0,9.003e-05,2]
[420664826,1776449438502,-200.0,9.003e-05,2]
[420664827,1776449438513,-200.0,9.003e-05,2]
[420664828,1776449438523,-200.0,9.003e-05,2]
[420664829,1776449438532,-263.64,9.003e-05,2]
[420664830,1776449438542,-250.0,9.01e-05,2]
[420664831,1776449438552,-1188.0,9.01e-05,5]
[420664832,1776449438561,-9739.43700847,9.01e-05,2]
[420664885,1776449440896,-993.3784,9.01e-05,2]
[420664886,1776449440942,-7756.7354226,9.01e-05,2]
[420664896,1776449441237,-30668.74154793,9.01e-05,2]
[420664897,1776449441248,-1045.19488352,9.01e-05,2]
[420664908,1776449444628,-37994.54464049,9.01e-05,2]
[420664909,1776449444638,-47669.67374992,9.01e-05,2]
[420664910,1776449444648,-71240.27298671,9.01e-05,2]
[420664911,1776449444657,-28370.82701329,9.01e-05,2]
[420664912,1776449444666,-151.0,9.01e-05,2]
[420664913,1776449444677,-151.0,9.01e-05,2]
[420664914,1776449444686,-2351.0,9.025e-05,2]
[420664915,1776449444696,-587.0,9.025e-05,2]
[420664916,1776449444706,-33879.2022614,9.031e-05,2]
[420664917,1776449444716,-151.0,9.031e-05,2]
[420664918,1776449444726,-151.0,9.031e-05,2]
[420664919,1776449444736,-151.0,9.031e-05,2]
[420664920,1776449444745,-151.0,9.031e-05,2]
[420664921,1776449444755,-190.83030843,9.042e-05,2]
[420664922,1776449444764,-3187.9272643,9.042e-05,2]
[420664923,1776449444774,-150.0,9.073e-05,2]
[420664924,1776449444783,-1500.0,9.076e-05,2]
[420664925,1776449444792,-60527.69760417,9.1e-05,2]
[420664926,1776449444802,-12120.36741852,9.1e-05,2]
[420664927,1776449444811,-1000.0,9.1e-05,2]
[420664928,1776449444820,-1000.0,9.1e-05,2]
[420664929,1776449444831,-1000.0,9.1e-05,2]
[420664930,1776449444840,-319.44,9.1e-05,2]
[420664931,1776449444850,-879.0,9.1e-05,2]
[420664932,1776449444860,-307.0,9.1e-05,2]
[420664933,1776449444870,-1000.0,9.1e-05,2]
[420664934,1776449444880,-4759.290639,9.107e-05,2]
[420664935,1776449444890,-150.0,9.12e-05,2]
[420664936,1776449444899,-153.0,9.142e-05,3]
[420664937,1776449444909,-260.592825,9.149e-05,2]
[420664938,1776449444919,-1235.0,9.149e-05,5]
[420664939,1776449444928,-349.51,9.156e-05,2]
[420664940,1776449444938,-7526.36051,9.156e-05,2]
[420664941,1776449444947,-2559.31781613,9.194e-05,2]
[420664943,1776449444956,-152.46766888,9.233e-05,2]
[420664945,1776449444966,-159.35053257,9.233e-05,2]
[420664947,1776449444975,-2000.0,9.247e-05,2]
[420664949,1776449444986,-156.27,9.247e-05,2]
[420664951,1776449444995,-150.0,9.247e-05,2]
[420664953,1776449445004,-150.0,9.247e-05,2]
[420664955,1776449445014,-150.0,9.247e-05,2]
[420664957,1776449445023,-150.0,9.247e-05,2]
[420664959,1776449445032,-150.0,9.247e-05,2]
[420664961,1776449445043,-150.0,9.247e-05,2]
[420664963,1776449445053,-150.0,9.247e-05,2]
[420664965,1776449445062,-150.76784931,9.247e-05,2]
[420664968,1776449445071,-150.0,9.247e-05,2]
[420664970,1776449445080,-292.92686761,9.247e-05,2]
[420664973,1776449445089,-150.0,9.247e-05,2]
[420664976,1776449445099,-151.03186045,9.247e-05,2]
[420664979,1776449445108,-150.0,9.247e-05,2]
[420664981,1776449445118,-150.0,9.247e-05,2]
[420664983,1776449445126,-2900.0,9.26e-05,2]
[420664984,1776449445135,-9701.949093,9.277e-05,2]
[420664985,1776449445146,-154.0,9.283e-05,3]
[420664986,1776449445155,-150.0,9.293e-05,2]
[420664987,1776449445164,-150.0,9.32e-05,2]
[420664988,1776449445173,-150.0,9.332e-05,2]
[420664989,1776449445182,-150.0,9.34e-05,2]
[420664990,1776449445191,-9120.725312,9.343e-05,2]
[420664991,1776449445200,-1428.38747117,9.356e-05,2]
[420664992,1776449445210,-829.12830338,9.356e-05,2]
[420664993,1776449445219,-194.72792766,9.356e-05,2]
[420664994,1776449445229,-209.40437684,9.356e-05,2]
[420664995,1776449445238,-150.0,9.361e-05,2]
[420664996,1776449445247,-150.0,9.361e-05,2]
[420664997,1776449445256,-150.0,9.375e-05,2]
[420664998,1776449445266,-150.0,9.387e-05,2]
[420664999,1776449445276,-150.0,9.393e-05,2]
[420665000,1776449445285,-150.0,9.418e-05,2]
[420665001,1776449445294,-150.0,9.42e-05,2]
[420665002,1776449445304,-150.0,9.433e-05,2]
[420665003,1776449445313,-250.0,9.452e-05,2]
[420665004,1776449445323,-1600.0,9.46e-05,2]
[420665005,1776449445333,-150.0,9.467e-05,2]
[420665006,1776449445343,-150.0,9.475e-05,2]
[420665007,1776449445352,-150.0,9.475e-05,2]
[420665008,1776449445362,-150.0,9.48e-05,2]
[420665009,1776449445371,-174.2374,9.5e-05,2]
[420665010,1776449445381,-174.2374,9.5e-05,2]
[420665011,1776449445390,-150.0,9.503e-05,2]
[420665012,1776449445399,-150.0,9.503e-05,2]
[420665013,1776449445408,-150.0,9.503e-05,2]
[420665014,1776449445417,-150.0,9.527e-05,2]
[420665015,1776449445426,-350.0,9.533e-05,3]
[420665016,1776449445435,-3000.0,9.534e-05,2]
[420665017,1776449445445,-150.0,9.54e-05,2]
[420665018,1776449445455,-1265.0,9.562e-05,2]
[420665019,1776449445464,-941.832,9.563e-05,2]
[420665020,1776449445474,-1219.0,9.563e-05,2]
[420665021,1776449445483,-416.0,9.563e-05,2]
[420665022,1776449445492,-6028.0,9.563e-05,2]
[420665023,1776449445513,-2473.0,9.563e-05,2]
[420665024,1776449445523,-150.0,9.573e-05,2]
[420665025,1776449445532,-150.0,9.589e-05,2]
[420665026,1776449445541,-150.0,9.589e-05,2]
[420665027,1776449445550,-150.0,9.589e-05,2]
[420665028,1776449445560,-150.0,9.589e-05,2]
[420665029,1776449445569,-150.0,9.589e-05,2]
[420665030,1776449445580,-151.0,9.589e-05,2]
[420665031,1776449445590,-150.0,9.614e-05,2]
[420665032,1776449445599,-150.0,9.62e-05,2]
[420665033,1776449445608,-150.0,9.632e-05,2]
[420665034,1776449445618,-150.0,9.667e-05,2]
[420665035,1776449445627,-150.0,9.675e-05,2]
[420665036,1776449445636,-150.0,9.687e-05,2]
[420665037,1776449445646,-150.0,9.703e-05,2]
[420665038,1776449445655,-150.0,9.703e-05,2]
[420665039,1776449445666,-350.0,9.71e-05,2]
[420665040,1776449445675,-150.0,9.714e-05,2]
[420665041,1776449445685,-150.0,9.72e-05,2]
[420665042,1776449445694,-350.0,9.731e-05,3]
[420665043,1776449445704,-156.27,9.76e-05,2]
[420665044,1776449445714,-150.0,9.76e-05,2]
[420665045,1776449445723,-150.0,9.76e-05,2]
[420665046,1776449445733,-150.0,9.76e-05,2]
[420665047,1776449445742,-10.79847712,9.76e-05,2]
[420665048,1776449445765,-139.20152288,9.76e-05,2]
[420665050,1776449445774,-150.0,9.76e-05,2]
[420665052,1776449445784,-7559.4718263,9.779e-05,2]
[420665053,1776449445793,-150.0,9.807e-05,2]
[420665055,1776449445803,-150.0,9.817e-05,2]
[420665056,1776449445812,-150.0,9.817e-05,2]
[420665057,1776449445822,-150.0,9.834e-05,2]
[420665058,1776449445832,-150.0,9.846e-05,2]
[420665059,1776449445841,-150.0,9.854e-05,2]
[420665060,1776449445851,-150.0,9.889e-05,2]
[420665061,1776449445860,-3528.0,9.897e-05,2]
[420665062,1776449445870,-1049.542,9.897e-05,2]
[420665063,1776449445879,-622.0,9.897e-05,2]
[420665064,1776449445889,-150.0,9.9e-05,2]
[420665065,1776449445904,-350.0,9.901e-05,3]
[420665066,1776449445913,-151.0,9.904e-05,2]
[420665067,1776449445923,-215.873365,9.904e-05,2]
[420665068,1776449445932,-1481.23780761,9.904e-05,2]
[420665069,1776449445942,-955.81870727,9.904e-05,2]
[420665070,1776449445952,-201.93286099,9.904e-05,2]
[420665071,1776449445963,-217.15233878,9.904e-05,2]
[420665072,1776449445972,-150.0,9.907e-05,2]
[420665074,1776449445982,-3292.0,9.928e-05,2]
[420665076,1776449445992,-150.0,9.932e-05,2]
[420665078,1776449446002,-150.0,9.932e-05,2]
[420665080,1776449446012,-150.0,9.932e-05,2]
[420665082,1776449446021,-150.0,9.932e-05,2]
[420665083,1776449446031,-150.0,9.932e-05,2]
[420665085,1776449446041,-1686.7461592,9.946e-05,2]
[420665086,1776449446050,-150.0,9.947e-05,2]
[420665087,1776449446060,-150.0,9.98e-05,2]
[420665088,1776449446070,-209.0,9.989e-05,2]
[420665089,1776449446081,-209.0,9.989e-05,2]
[420665090,1776449446090,-150.0,9.994e-05,2]
[420665091,1776449446100,-300.0,0.0001,2]
[420665092,1776449446110,-1000.0,0.0001,2]
[420665093,1776449446120,-164.8199,0.0001,2]
[420665094,1776449446129,-151.0,0.0001,2]
[420665095,1776449446140,-159.39184945,0.0001,2]
[420665096,1776449446150,-159.39184945,0.0001,2]
[420665097,1776449446161,-159.39184945,0.0001,2]
[420665098,1776449446171,-151.0,0.0001,2]
[420665099,1776449446180,-151.0,0.0001,2]
[420665100,1776449446190,-151.0,0.0001,2]
[420665101,1776449446199,-500.0,0.0001,2]
[420665102,1776449446209,-151.0,0.0001,2]
[420665103,1776449446218,-151.0,0.0001,2]
[420665104,1776449446228,-500.0,0.0001,2]
[420665105,1776449446237,-151.0,0.0001,2]
[420665106,1776449446246,-500.0,0.0001,2]
[420665107,1776449446256,-151.0,0.0001,2]
[420665108,1776449446266,-500.0,0.0001,2]
[420665109,1776449446275,-151.0,0.0001,2]
[420665110,1776449446284,-500.0,0.0001,2]
[420665111,1776449446293,-151.0,0.0001,2]
[420665112,1776449446307,-500.0,0.0001,2]
[420665113,1776449446316,-151.0,0.0001,2]
[420665114,1776449446326,-500.0,0.0001,2]
[420665115,1776449446338,-151.0,0.0001,2]
[420665116,1776449446348,-500.0,0.0001,2]
[420665117,1776449446358,-151.0,0.0001,2]
[420665118,1776449446368,-500.0,0.0001,2]
[420665119,1776449446377,-151.0,0.0001,2]
[420665120,1776449446387,-151.0,0.0001,2]
[420665121,1776449446398,-151.0,0.0001,2]
[420665122,1776449446408,-200.0,0.0001,2]
[420665123,1776449446417,-4100.0,0.0001,3]
[420665124,1776449446426,-500.0,0.0001,2]
[420665125,1776449446436,-183.54818463,0.0001,2]
[420665126,1776449446446,-500.0,0.0001,2]
[420665127,1776449446457,-151.0,0.0001,2]
[420665128,1776449446468,-500.0,0.0001,2]
[420665129,1776449446479,-151.0,0.0001,2]
[420665130,1776449446488,-500.0,0.0001,2]
[420665132,1776449446497,-500.0,0.0001,2]
[420665134,1776449446507,-151.0,0.0001,2]
[420665136,1776449446517,-500.0,0.0001,2]
[420665138,1776449446527,-151.0,0.0001,2]
[420665140,1776449446536,-500.0,0.0001,2]
[420665142,1776449446546,-151.0,0.0001,2]
[420665144,1776449446555,-500.0,0.0001,2]
[420665145,1776449446564,-151.0,0.0001,2]
[420665146,1776449446574,-500.0,0.0001,2]
[420665147,1776449446583,-151.0,0.0001,2]
[420665148,1776449446593,-151.0,0.0001,2]
[420665149,1776449446603,-151.0,0.0001,2]
[420665150,1776449446612,-151.0,0.0001,2]
[420665151,1776449446622,-151.0,0.0001,2]
[420665152,1776449446631,-151.0,0.0001,2]
[420665153,1776449446641,-151.0,0.0001,2]
[420665154,1776449446650,-151.0,0.0001,2]
[420665155,1776449446660,-151.0,0.0001,2]
[420665156,1776449446668,-151.0,0.0001,2]
[420665157,1776449446678,-231.66311985,0.0001,2]
[420665158,1776449446687,-151.0,0.0001,2]
[420665159,1776449446698,-176.191139,0.0001,2]
[420665161,1776449446712,-385.04999,0.0001,2]
[420665162,1776449446722,-385.04999,0.0001,2]
[420665163,1776449446731,-385.05,0.0001,2]
[420665164,1776449446740,-385.04999,0.0001,2]
[420665165,1776449446750,-385.04999,0.0001,2]
[420665166,1776449446759,-385.05,0.0001,2]
[420665168,1776449446769,-2000.0,0.0001,2]
[420665170,1776449446778,-2000.0,0.0001,2]
[420665172,1776449446788,-2000.0,0.0001,2]
[420665174,1776449446798,-2000.0,0.0001,2]
[420665176,1776449446808,-2000.0,0.0001,2]
[420665178,1776449446818,-2000.0,0.0001,2]
[420665181,1776449446828,-2541.80865386,0.0001,2]
[420665183,1776449446839,-215.78347579,0.0001,2]
[420665184,1776449446849,-766.01688509,0.0001,2]
[420665186,1776449446860,-500.0,0.0001,2]
[420665189,1776449446871,-500.0,0.0001,2]
[420665191,1776449446884,-500.0,0.0001,2]
[420665193,1776449446894,-500.0,0.0001,2]
[420665195,1776449446904,-500.0,0.0001,2]
[420665197,1776449446913,-500.0,0.0001,2]
[420665199,1776449446923,-500.0,0.0001,2]
[420665211,1776449446932,-500.0,0.0001,2]
[420665212,1776449447564,-500.0,0.0001,2]
[420665213,1776449447574,-500.0,0.0001,2]
[420665214,1776449447584,-500.0,0.0001,2]
[420665215,1776449447604,-500.0,0.0001,2]
[420665216,1776449447615,-500.0,0.0001,2]
[420665217,1776449447625,-500.0,0.0001,2]
[420665218,1776449447634,-500.0,0.0001,2]
[420665219,1776449447645,-500.0,0.0001,2]
[420665220,1776449447655,-500.0,0.0001,2]
[420665221,1776449447664,-500.0,0.0001,2]
[420665222,1776449447674,-500.0,0.0001,2]
[420665223,1776449447685,-500.0,0.0001,2]
[420665224,1776449447695,-500.0,0.0001,2]
[420665225,1776449447705,-500.0,0.0001,2]
[420665226,1776449447716,-500.0,0.0001,2]
[420665227,1776449447726,-500.0,0.0001,2]
[420665228,1776449447735,-500.0,0.0001,2]
[420665229,1776449447745,-500.0,0.0001,2]
[420665230,1776449447756,-500.0,0.0001,2]
[420665231,1776449447765,-500.0,0.0001,2]
[420665232,1776449447776,-500.0,0.0001,2]
[420665233,1776449447785,-350.0,0.00010009,2]
[420665234,1776449447796,-150.0,0.00010017,2]
[420665235,1776449447806,-150.0,0.00010017,2]
[420665236,1776449447816,-150.0,0.00010017,2]
[420665237,1776449447826,-150.0,0.0001002,2]
[420665238,1776449447837,-150.0,0.0001004,2]
[420665239,1776449447847,-150.0,0.00010046,2]
[420665240,1776449447857,-150.0,0.00010046,2]
[420665241,1776449447867,-150.0,0.00010054,2]
[420665242,1776449447877,-150.0,0.00010087,2]
[420665243,1776449447888,-261.91445586,0.000101,2]
[420665244,1776449447899,-150.0,0.00010103,2]
[420665245,1776449447910,-150.0,0.00010127,2]
[420665246,1776449447920,-153.0,0.00010131,3]
[420665247,1776449447929,-150.0,0.00010134,2]
[420665248,1776449447940,-200.0,0.00010137,3]
[420665249,1776449447951,-200.0,0.00010137,3]
[420665250,1776449447964,-200.0,0.00010137,3]
[420665251,1776449447975,-150.0,0.00010146,2]
[420665252,1776449447985,-150.0,0.0001016,2]
[420665253,1776449447995,-150.0,0.0001016,2]
[420665254,1776449448005,-150.0,0.00010181,2]
[420665255,1776449448015,-150.0,0.00010188,2]
[420665256,1776449448025,-150.0,0.00010201,2]
[420665257,1776449448035,-150.0,0.00010227,2]
[420665258,1776449448045,-176.94582479,0.00010274,2]